fUST/lending_fUST_20240914
["ID","MTS","AMOUNT","RATE_DAILY","PERIOD"]
[338154854,1726317130522,-1853.91,0.00043835,120]
[338154855,1726317130530,-500.0,0.00043835,120]
[338154856,1726317130539,-500.0,0.00043835,120]
[338154857,1726317130549,-500.0,0.00043835,120]
[338154858,1726317130558,-1437.38,0.00043835,120]
[338154859,1726317130567,-500.0,0.00043835,120]
[338154860,1726317130576,-500.0,0.00043835,120]
[338154862,1726317130585,-500.0,0.00043835,120]
[338154863,1726317130595,-500.0,0.00043835,120]
[338154864,1726317130604,-972.51,0.00043835,120]
[338154865,1726317130614,-14855.64,0.00043835,120]
[338154866,1726317130622,-500.0,0.00043835,120]
[338154868,1726317130632,-500.0,0.00043835,120]
[338154869,1726317130641,-2965.31,0.00043835,120]
[338154870,1726317130649,-500.0,0.00043835,120]
[338154871,1726317130659,-38502.3,0.00043835,120]
[338154872,1726317130667,-1000.0,0.00043835,120]
[338154873,1726317130679,-500.0,0.00043835,120]
[338154875,1726317130690,-888.46,0.00043835,120]
[338154876,1726317130701,-500.0,0.00043835,120]
[338154877,1726317130710,-618.77,0.00043835,120]
[338154878,1726317130719,-500.0,0.00043835,120]
[338154879,1726317130729,-500.0,0.00043835,120]
[338154880,1726317130738,-500.0,0.00043835,120]
[338154881,1726317130747,-1212.46,0.00043835,120]
[338154882,1726317130757,-1420.22,0.00043835,120]
[338154883,1726317130766,-500.0,0.00043835,120]
[338154884,1726317130775,-617.82,0.00043835,120]
[338154885,1726317130784,-1000.0,0.00043835,118]
[338154886,1726317130793,-500.0,0.00043835,120]
[338154887,1726317130802,-500.0,0.00043835,120]
[338154888,1726317130811,-500.0,0.00043835,120]
[338154889,1726317130821,-500.0,0.00043835,120]
[338154890,1726317130830,-4480.37,0.00043835,120]
[338154891,1726317130839,-1901.2,0.00043835,120]
[338154892,1726317130848,-500.0,0.00043835,120]
[338154893,1726317130857,-2212.11,0.00043835,120]
[338154894,1726317130866,-190.31104,0.00043835,120]
[338154895,1726317130875,-1850.48,0.00043835,120]
[338154896,1726317130884,-1671.86,0.00043835,120]
[338154897,1726317130893,-500.0,0.00043835,120]
[338154898,1726317130903,-500.0,0.00043835,120]
[338154899,1726317130911,-1445.74,0.00043835,120]
[338154900,1726317130921,-8986.94,0.00043835,120]
[338154901,1726317130931,-500.0,0.00043835,120]
[338154902,1726317130941,-1060.98,0.00043835,120]
[338154903,1726317130951,-500.0,0.00043835,120]
[338154904,1726317130961,-500.0,0.00043835,120]
[338154905,1726317130970,-2902.85,0.00043835,120]
[338154906,1726317130980,-500.0,0.00043835,120]
[338154907,1726317130990,-500.0,0.00043835,120]
[338154908,1726317130999,-500.0,0.00043835,120]
[338154909,1726317131008,-1260.69,0.00043835,120]
[338154910,1726317131018,-1052.69,0.00043835,120]
[338154911,1726317131027,-500.0,0.00043835,120]
[338154912,1726317131036,-974.69,0.00043835,120]
[338154913,1726317131045,-500.0,0.00043835,120]
[338154915,1726317131055,-1265.16,0.00043835,120]
[338154916,1726317131064,-500.0,0.00043835,120]
[338154917,1726317131074,-3011.16,0.00043835,120]
[338154918,1726317131083,-3995.59,0.00043835,120]
[338154919,1726317131093,-500.0,0.00043835,60]
[338154921,1726317131102,-271.06858725,0.00043835,120]
[338154922,1726317131113,-500.0,0.00043835,120]
[338154923,1726317131125,-500.0,0.00043835,120]
[338154924,1726317131134,-1246.63,0.00043835,120]
[338154925,1726317131143,-730.92,0.00043835,120]
[338154927,1726317131153,-500.0,0.00043835,120]
[338154928,1726317131162,-2079.0,0.00043835,120]
[338154929,1726317131171,-1209.2,0.00043835,120]
[338154930,1726317131181,-3380.83,0.00043835,120]
[338154931,1726317131191,-544.73,0.00043835,120]
[338154932,1726317131200,-500.0,0.00043835,120]
[338154934,1726317131211,-2769.24,0.00043835,120]
[338154935,1726317131220,-591.05,0.00043835,120]
[338154936,1726317131229,-500.0,0.00043835,120]
[338154937,1726317131239,-500.0,0.00043835,120]
[338154938,1726317131248,-500.0,0.00043835,120]
[338154940,1726317131258,-500.0,0.00043835,120]
[338154941,1726317131267,-85816.78,0.00043835,120]
[338154942,1726317131277,-500.0,0.00043835,120]
[338154943,1726317131288,-500.0,0.00043835,120]
[338154944,1726317131299,-500.0,0.00043835,120]
[338154945,1726317131311,-6482.54,0.00043835,120]
[338154946,1726317131323,-6482.54,0.00043835,120]
[338154947,1726317131332,-2575.5,0.00043835,120]
[338154948,1726317131342,-6482.54,0.00043835,120]
[338154949,1726317131351,-6482.54,0.00043835,120]
[338154950,1726317131361,-6482.54,0.00043835,120]
[338154951,1726317131372,-6482.54,0.00043835,120]
[338154952,1726317131383,-6482.54,0.00043835,120]
[338154953,1726317131393,-6482.54,0.00043835,120]
[338154954,1726317131402,-6482.54,0.00043835,120]
[338154955,1726317131412,-6482.54,0.00043835,120]
[338154956,1726317131421,-6482.54,0.00043835,120]
[338154957,1726317131432,-6482.54,0.00043835,120]
[338154958,1726317131443,-6482.54,0.00043835,120]
[338154959,1726317131453,-6482.54,0.00043835,120]
[338154961,1726317131463,-6482.54,0.00043835,120]
[338154962,1726317131474,-6482.54,0.00043835,120]
[338154964,1726317131629,-6482.54,0.00043835,120]
[338154965,1726317131650,-1611.59,0.00043835,120]
[338154966,1726317131659,-4753.94,0.00043835,120]
[338154967,1726317131668,-6482.54,0.00043835,120]
[338154968,1726317131678,-6482.54,0.00043835,120]
[338154969,1726317131688,-6482.54,0.00043835,120]
[338154970,1726317131698,-6482.54,0.00043835,120]
[338154971,1726317131707,-6482.54,0.00043835,120]
[338154972,1726317131716,-500.0,0.00043835,120]
[338154974,1726317131726,-6482.54,0.00043835,120]
[338154975,1726317131736,-6482.63752268,0.00043835,120]
[338154976,1726317131745,-666.71,0.00043835,120]
[338154977,1726317131756,-500.0,0.00043835,120]
[338154978,1726317131765,-500.0,0.00043835,7]
[338154979,1726317131774,-500.0,0.00043835,120]
[338154980,1726317131785,-6575.25,0.00043835,120]
[338154981,1726317131796,-18384.60932541,0.00043835,120]
[338154983,1726317132062,-85.20067459,0.00043835,120]
[338154985,1726317132071,-500.0,0.00043835,120]
[338154986,1726317132082,-500.0,0.00043835,60]
[338154987,1726317132091,-8983.12,0.00043835,120]
[338154988,1726317132100,-1895.45,0.00043835,120]
[338154989,1726317132111,-693.42,0.00043835,120]
[338154990,1726317132122,-500.0,0.00043835,120]
[338154991,1726317132133,-500.0,0.00043835,120]
[338154992,1726317132143,-500.0,0.00043835,120]
[338154993,1726317132155,-2596.23,0.00043835,120]
[338154994,1726317132166,-332.70163726,0.00043835,120]
[338154995,1726317132177,-40045.04,0.00043835,120]
[338154996,1726317132187,-2360.97268298,0.00043835,120]
[338155000,1726317132467,-208.5342696,0.00029812,2]
[338155001,1726317132477,-153.0,0.00031318,2]
[338155002,1726317132486,-836.60082616,0.00038404,2]
[338155003,1726317132496,-117.26864466,0.00043835,120]
[338155005,1726317132509,-1813.61867236,0.00043835,120]
[338155006,1726317132519,-503.47730438,0.00043835,120]
[338155007,1726317132528,-20264.81,0.00043835,120]
[338155008,1726317132538,-500.0,0.00043835,120]
[338155010,1726317132549,-558.95,0.00043835,120]
[338155011,1726317132559,-500.0,0.00043835,120]
[338155012,1726317132569,-500.0,0.00043835,120]
[338155013,1726317132580,-500.0,0.00043835,120]
[338155015,1726317132590,-513.56824316,0.00043835,120]
[338155016,1726317132600,-200.0,0.00043835,120]
[338155017,1726317132611,-500.0,0.00043835,120]
[338155018,1726317132621,-500.0,0.00043835,120]
[338155019,1726317132631,-528.84,0.00043835,120]
[338155020,1726317132641,-2549.96,0.00043835,120]
[338155021,1726317132650,-500.0,0.00043835,120]
[338155022,1726317132678,-751.77,0.00043835,120]
[338155023,1726317132696,-500.0,0.00043835,120]
[338155024,1726317132714,-500.0,0.00043835,120]
[338155026,1726317132735,-1779.62,0.00043835,120]
[338155027,1726317132757,-1613.91,0.00043835,120]
[338155029,1726317132775,-522.78535451,0.00043835,120]
[338155030,1726317132791,-225.83734193,0.00043835,120]
[338155031,1726317132808,-10347.55,0.00043835,120]
[338155033,1726317132827,-999.78,0.00043835,120]
[338155034,1726317132849,-500.0,0.00043835,120]
[338155036,1726317132863,-984.77,0.00043835,120]
[338155037,1726317132881,-500.0,0.00043835,120]
[338155038,1726317132898,-500.0,0.00043835,120]
[338155039,1726317132915,-1090.76,0.00043835,120]
[338155040,1726317132928,-500.0,0.00043835,120]
[338155041,1726317132946,-1153.45,0.00043835,120]
[338155042,1726317132960,-65044.32,0.00043835,18]
[338155043,1726317132975,-500.0,0.00043835,120]
[338155044,1726317132991,-573.35,0.00043835,120]
[338155045,1726317133005,-500.0,0.00043835,120]
[338155047,1726317133021,-500.0,0.00043835,120]
[338155048,1726317133037,-500.0,0.00043835,120]
[338155049,1726317133053,-500.0,0.00043835,120]
[338155051,1726317133069,-500.0,0.00043835,120]
[338155052,1726317133084,-500.0,0.00043835,120]
[338155053,1726317133100,-500.0,0.00043835,120]
[338155054,1726317133115,-500.0,0.00043835,120]
[338155056,1726317133132,-500.0,0.00043835,120]
[338155057,1726317133146,-272.63996665,0.00043835,120]
[338155058,1726317133163,-521.50026456,0.00043835,120]
[338155059,1726317133177,-500.0,0.00043835,120]
[338155060,1726317133193,-500.0,0.00043835,120]
[338155061,1726317133211,-500.0,0.00043835,120]
[338155062,1726317133226,-524.43,0.00043835,120]
[338155063,1726317133241,-500.0,0.00043835,120]
[338155064,1726317133257,-3300.49,0.00043835,21]
[338155065,1726317133273,-2579.07,0.00043835,120]
[338155067,1726317133289,-8857.123343,0.00043835,120]
[338155068,1726317133309,-283.88572216,0.00043835,120]
[338157740,1726317913585,-2500.0,0.00011799,2]
[338157741,1726317913620,-2500.0,0.00012275,2]
[338157742,1726317913656,-2500.0,0.00012284,2]
[338157743,1726317913690,-2500.0,0.00012293,2]
[338157744,1726317913725,-2500.0,0.00012302,2]
[338157745,1726317913760,-2500.0,0.0001231,2]
[338157746,1726317913795,-2500.0,0.00012319,2]
[338157799,1726318232106,-760.904,0.00012328,2]
[338157800,1726318232119,-433.90707799,0.00012328,2]
[338157817,1726318238390,-668.43102783,0.00012328,2]
[338157818,1726318238477,-159.67024834,0.00012328,2]
[338157819,1726318238489,-477.08764584,0.00012328,2]
[338157820,1726318238498,-158.834459,0.00013699,2]
[338157821,1726318238508,-670.40050011,0.00016163,2]
[338157822,1726318238521,-1038.46244889,0.00016163,2]
[338157823,1726318238532,-10000.0,0.00019264,2]
[338157824,1726318238542,-3000.0,0.00021,2]
[338157825,1726318238551,-1000.0,0.00021,21]
[338157826,1726318238561,-3000.0,0.0002101,2]
[338157827,1726318238572,-3000.0,0.0002102,2]
[338157828,1726318238582,-3000.0,0.0002103,2]
[338157829,1726318238599,-3000.0,0.0002104,2]
[338157830,1726318238609,-3000.0,0.0002105,2]
[338157831,1726318238619,-3000.0,0.0002106,2]
[338157832,1726318238629,-3000.0,0.0002107,2]
[338157833,1726318238638,-3000.0,0.0002108,2]
[338157834,1726318238647,-3000.0,0.0002109,2]
[338157835,1726318238657,-3000.0,0.000211,2]
[338157836,1726318238667,-3000.0,0.0002111,2]
[338157837,1726318238676,-3000.0,0.0002112,2]
[338157838,1726318238686,-3000.0,0.0002113,2]
[338157839,1726318238695,-3000.0,0.0002114,2]
[338157840,1726318238708,-3000.0,0.0002115,2]
[338157841,1726318238719,-3000.0,0.0002116,2]
[338157842,1726318238728,-3000.0,0.0002117,2]
[338157843,1726318238738,-3000.0,0.0002118,2]
[338157844,1726318238749,-3000.0,0.0002119,2]
[338157845,1726318238759,-3000.0,0.000212,2]
[338157846,1726318238769,-160.46479,0.00021209,2]
[338157847,1726318238780,-3000.0,0.0002121,2]
[338157848,1726318238790,-3000.0,0.0002122,2]
[338157849,1726318238800,-3000.0,0.0002123,2]
[338157850,1726318238810,-651.45,0.0002123,3]
[338157851,1726318238820,-651.49,0.0002123,3]
[338157852,1726318238830,-3000.0,0.0002124,2]
[338157853,1726318238844,-120218.061264,0.0002124,3]
[338157854,1726318238854,-76479.8949615,0.0002124,3]
[338157855,1726318238864,-3000.0,0.0002125,2]
[338157856,1726318238874,-3000.0,0.0002126,2]
[338157857,1726318238885,-3000.0,0.0002127,2]
[338157858,1726318238895,-5595.352236,0.0002128,2]
[338157859,1726318238904,-1000.0,0.00023,23]
[338157860,1726318238915,-158.834459,0.00023973,2]
[338157861,1726318238926,-302.51602579,0.00024,2]
[338157862,1726318238935,-302.03320718,0.0002424,2]
[338157863,1726318238945,-1708.862949,0.00024244,2]
[338157864,1726318238955,-540.5179607,0.0002465,2]
[338157865,1726318238964,-200.0,0.00024658,15]
[338157866,1726318238975,-1000.0,0.00025,25]
[338157867,1726318238984,-150.0,0.000254,2]
[338157868,1726318238993,-150.0,0.00025952,2]
[338157869,1726318239004,-283.226,0.00025952,2]
[338157870,1726318239013,-150.207,0.00025952,2]
[338157871,1726318239023,-500.0,0.0002605,2]
[338157872,1726318239033,-500.0,0.0002605,2]
[338157873,1726318239043,-609.32214745,0.0002605,2]
[338157874,1726318239053,-500.0,0.0002605,2]
[338157875,1726318239064,-358.84092384,0.0002605,2]
[338157876,1726318239074,-500.0,0.0002605,2]
[338157877,1726318239083,-500.0,0.0002605,2]
[338157878,1726318239094,-160.93056339,0.0002605,2]
[338157879,1726318239104,-501.35965204,0.0002605,2]
[338157880,1726318239114,-621.0479607,0.00026301,2]
[338157881,1726318239123,-204.86,0.000266,31]
[338157882,1726318239133,-204.86,0.000266,31]
[338157883,1726318239142,-204.86,0.000266,31]
[338157884,1726318239151,-204.86,0.000266,31]
[338157885,1726318239161,-204.86,0.000266,31]
[338157886,1726318239171,-204.86,0.000266,31]
[338157887,1726318239180,-204.86,0.000266,31]
[338157888,1726318239190,-204.86,0.000266,31]
[338157889,1726318239200,-204.86,0.000266,31]
[338157890,1726318239210,-204.86,0.000266,31]
[338157891,1726318239219,-204.86,0.000266,31]
[338157892,1726318239229,-204.86,0.000266,31]
[338157893,1726318239239,-1000.0,0.00027,27]
[338157894,1726318239249,-500.0,0.00027229,10]
[338157895,1726318239259,-500.0,0.00027229,10]
[338157896,1726318239269,-500.0,0.00027229,10]
[338157897,1726318239279,-500.0,0.00027229,10]
[338157898,1726318239289,-500.0,0.00027229,10]
[338157899,1726318239299,-500.0,0.00027229,10]
[338157900,1726318239309,-500.0,0.00027229,10]
[338157901,1726318239319,-500.0,0.00027229,10]
[338157902,1726318239329,-500.0,0.00027229,10]
[338157903,1726318239338,-900.0,0.00027229,10]
[338157904,1726318239348,-500.0,0.00027329,2]
[338157905,1726318239358,-173.66871278,0.00027375,2]
[338157906,1726318239367,-301.7465964,0.0002742,5]
[338157907,1726318239377,-500.0,0.00027583,5]
[338157908,1726318239387,-500.0,0.00027625,5]
[338157909,1726318239396,-168.80085096,0.00027689,5]
[338157910,1726318239407,-161.80596857,0.00027689,5]
[338157911,1726318239417,-500.0,0.00027689,5]
[338157912,1726318239426,-170.79142262,0.00027689,5]
[338157913,1726318239435,-200.30630431,0.00027689,5]
[338157914,1726318239445,-500.0,0.00027689,5]
[338157915,1726318239454,-500.93276604,0.00027889,5]
[338157916,1726318239464,-500.0,0.00027889,5]
[338157917,1726318239474,-500.0,0.00027889,5]
[338157918,1726318239484,-500.0,0.00027889,5]
[338157919,1726318239493,-500.0,0.00027889,5]
[338157920,1726318239503,-500.0,0.00027889,5]
[338157921,1726318239513,-50519.95283169,0.0002797,4]
[338157934,1726318243208,-298.46684654,0.0002797,4]
[338157935,1726318243374,-59492.13499483,0.0002797,4]
[338157940,1726318246266,-2305.29999999,0.0002797,4]
[338157999,1726319432221,-807.98813339,0.00012302,2]
[338158002,1726319432280,-848.77109088,0.00012302,2]
[338158004,1726319432340,-843.24077573,0.00012302,2]
[338158006,1726319432349,-2500.0,0.0001231,2]
[338158008,1726319432358,-2500.0,0.00012319,2]
[338158010,1726319432367,-300.0,0.00012327,2]
[338158012,1726319432377,-1583.81735973,0.00012328,2]
[338158046,1726319440406,-509.26315616,0.00012328,2]
[338158051,1726319443395,-406.91948411,0.00012328,2]
[338158052,1726319443407,-158.834459,0.00013699,2]
[338158053,1726319443417,-150.0,0.00021,2]
[338158054,1726319443428,-200.0,0.00024658,15]
[338158055,1726319443438,-150.0,0.00025952,2]
[338158057,1726319443448,-177.79285319,0.00026,2]
[338158073,1726320204299,5023.05958882,0.00028,120]
[338158080,1726320519627,1029.31245598,0.000278,120]
[338158081,1726320521330,1000.0,0.00028,120]
[338158160,1726320632668,-1505.11412018,0.00013599,2]
[338158161,1726320632677,-158.834459,0.00013699,2]
[338158162,1726320632687,-500.0,0.000252,2]
[338158163,1726320632696,-160.46479,0.00025226,2]
[338158164,1726320632706,-6398.31362304,0.00025307,2]
[338158165,1726320632716,-298.68702191,0.00025364,2]
[338158166,1726320632725,-246.94998594,0.000255,31]
[338158167,1726320632735,-6398.31362305,0.00025599,2]
[338158168,1726320632744,-6386.82504964,0.000259,5]
[338158172,1726320638682,-22543.46921389,0.000259,5]
[338158173,1726320638692,-4138.67551015,0.000259,2]
[338158174,1726320638702,-1000.0,0.00026,2]
[338158175,1726320638712,-180.29,0.000266,31]
[338158176,1726320638721,-180.29,0.000266,31]
[338158177,1726320638731,-180.29,0.000266,31]
[338158178,1726320638741,-180.29,0.000266,31]
[338158179,1726320638750,-180.29,0.000266,31]
[338158180,1726320638759,-180.29,0.000266,31]
[338158181,1726320638769,-180.29,0.000266,31]
[338158182,1726320638780,-180.29,0.000266,31]
[338158183,1726320638790,-180.29,0.000266,31]
[338158184,1726320638799,-180.29,0.000266,31]
[338158185,1726320638809,-180.29,0.000266,31]
[338158186,1726320638818,-180.29,0.000266,31]
[338158187,1726320638828,-1000.0,0.00027,2]
[338158188,1726320638838,-150.0,0.000271,2]
[338158189,1726320638848,-158.834459,0.00027397,2]
[338158190,1726320638858,-156.89971574,0.000278,2]
[338158191,1726320638867,-1000.0,0.0002797,4]
[338158192,1726320638878,-500.0,0.00028,30]
[338158193,1726320638887,-500.0,0.00028,30]
[338158194,1726320638897,-500.0,0.00028,30]
[338158195,1726320638907,-500.0,0.00028,30]
[338158196,1726320638916,-500.0,0.00028,30]
[338158197,1726320638925,-500.0,0.00028,30]
[338158198,1726320638934,-500.0,0.00028,30]
[338158199,1726320638943,-500.0,0.00028,30]
[338158200,1726320638953,-500.0,0.00028,30]
[338158201,1726320638962,-500.0,0.00028,30]
[338158202,1726320638972,-1000.0,0.00028,60]
[338158203,1726320638982,-4138.67551014,0.00028174,2]
[338158204,1726320638992,-325.747,0.00028458,19]
[338158205,1726320639002,-300.0,0.00028621,2]
[338158206,1726320639011,-3200.0,0.00028621,2]
[338158207,1726320639021,-150.0,0.00028621,2]
[338158208,1726320639032,-237.7,0.000287,7]
[338158209,1726320639042,-180.29,0.000297,31]
[338158210,1726320639052,-180.29,0.000297,31]
[338158211,1726320639062,-180.29,0.000297,31]
[338158212,1726320639073,-180.29,0.000297,31]
[338158213,1726320639083,-180.29,0.000297,31]
[338158214,1726320639092,-180.29,0.000297,31]
[338158215,1726320639102,-180.29,0.000297,31]
[338158216,1726320639111,-180.29,0.000297,31]
[338158217,1726320639121,-180.29,0.000297,31]
[338158218,1726320639131,-180.29,0.000297,31]
[338158219,1726320639140,-180.29,0.000297,31]
[338158220,1726320639150,-180.29,0.000297,31]
[338158221,1726320639160,-180.29,0.000297,31]
[338158222,1726320639171,-180.29,0.000297,31]
[338158223,1726320639181,-180.29,0.000297,31]
[338158224,1726320639191,-180.29,0.000297,31]
[338158225,1726320639202,-180.29,0.000297,31]
[338158226,1726320639212,-180.29,0.000297,31]
[338158227,1726320639222,-180.29,0.000297,31]
[338158228,1726320639231,-180.29,0.000297,31]
[338158229,1726320639242,-180.29,0.000297,31]
[338158230,1726320639251,-180.29,0.000297,31]
[338158231,1726320639261,-180.29,0.000297,31]
[338158232,1726320639271,-180.29,0.000297,31]
[338158233,1726320639280,-666.0,0.00029836,120]
[338158234,1726320639290,-1000.0,0.0003,2]
[338158235,1726320639299,-1300.0,0.0003,120]
[338158236,1726320639309,-4138.67551014,0.00030448,2]
[338158237,1726320639318,-888.0,0.0003074,120]
[338158238,1726320639328,-690.2828,0.00031083,30]
[338158239,1726320639338,-500.0,0.000318,5]
[338158240,1726320639348,-1000.0,0.00032,120]
[338158241,1726320639357,-5000.0,0.00032,2]
[338158242,1726320639367,-29904.57,0.0003246,3]
[338158243,1726320639378,-2265.103,0.000325,120]
[338158244,1726320639387,-2265.103,0.000325,120]
[338158245,1726320639397,-2265.103,0.000325,120]
[338158246,1726320639407,-2265.103,0.000325,120]
[338158247,1726320639416,-2265.103,0.000325,120]
[338158248,1726320639426,-673.7,0.00032548,120]
[338158249,1726320639435,-368.47,0.0003268,3]
[338158250,1726320639444,-167.32016525,0.00032688,2]
[338158251,1726320639455,-368.47,0.0003269,3]
[338158252,1726320639466,-180.29,0.000327,31]
[338158253,1726320639477,-180.29,0.000327,31]
[338158254,1726320639487,-180.29,0.000327,31]
[338158255,1726320639497,-180.29,0.000327,31]
[338158256,1726320639506,-180.29,0.000327,31]
[338158257,1726320639516,-180.29,0.000327,31]
[338158258,1726320639526,-180.29,0.000327,31]
[338158259,1726320639537,-180.29,0.000327,31]
[338158260,1726320639548,-180.29,0.000327,31]
[338158261,1726320639557,-180.29,0.000327,31]
[338158262,1726320639567,-180.29,0.000327,31]
[338158263,1726320639577,-180.29,0.000327,31]
[338158264,1726320639589,-180.29,0.000327,31]
[338158265,1726320639599,-180.29,0.000327,31]
[338158266,1726320639609,-180.29,0.000327,31]
[338158267,1726320639619,-180.29,0.000327,31]
[338158268,1726320639629,-180.29,0.000327,31]
[338158269,1726320639639,-180.29,0.000327,31]
[338158270,1726320639649,-180.29,0.000327,31]
[338158271,1726320639658,-180.29,0.000327,31]
[338158272,1726320639668,-180.29,0.000327,31]
[338158273,1726320639678,-180.29,0.000327,31]
[338158274,1726320639687,-180.29,0.000327,31]
[338158275,1726320639696,-180.29,0.000327,31]
[338158276,1726320639706,-1000.0,0.00032714,2]
[338158277,1726320639715,-4138.67551014,0.00032722,2]
[338158278,1726320639725,-153.75256449,0.00032759,2]
[338158279,1726320639734,-254.88920494,0.00032767,2]
[338158280,1726320639744,-500.0,0.00032767,2]
[338158281,1726320639755,-500.0,0.00032767,2]
[338158282,1726320639766,-500.0,0.00032767,2]
[338158283,1726320639780,-500.0,0.00032767,2]
[338158284,1726320639789,-500.0,0.00032767,2]
[338158285,1726320639798,-500.0,0.00032767,2]
[338158286,1726320639808,-500.0,0.00032767,2]
[338158287,1726320639820,-500.0,0.00032767,2]
[338158288,1726320639831,-500.0,0.00032767,2]
[338158289,1726320639841,-500.0,0.00032767,2]
[338158290,1726320639852,-500.0,0.00032767,2]
[338158291,1726320639862,-500.0,0.00032767,2]
[338158292,1726320639873,-500.0,0.00032767,2]
[338158293,1726320639882,-500.0,0.00032767,2]
[338158294,1726320639892,-500.0,0.00032767,2]
[338158295,1726320639901,-394.78593575,0.00032767,2]
[338158296,1726320639910,-500.0,0.00032767,2]
[338158297,1726320639922,-500.0,0.00032767,2]
[338158298,1726320639931,-500.0,0.00032767,2]
[338158299,1726320639942,-500.0,0.00032767,2]
[338158300,1726320639954,-500.0,0.00032767,2]
[338158301,1726320639965,-500.0,0.00032767,2]
[338158303,1726320639975,-500.0,0.00032767,2]
[338158304,1726320639985,-500.0,0.00032767,2]
[338158305,1726320639995,-500.0,0.00032767,2]
[338158306,1726320640004,-500.0,0.00032767,2]
[338158307,1726320640015,-500.0,0.00032767,2]
[338158308,1726320640025,-121433.89255944,0.00032768,4]
[338158330,1726320643703,-150.0,0.0003,2]
[338158331,1726320643713,-8898.67866301,0.00032768,4]
[338158384,1726320646617,-1373.87461953,0.00032768,4]
[338158386,1726320646630,-8959.75,0.00032768,4]
[338158406,1726321098711,834.3248,0.00026,60]
[338158409,1726321160558,200.0,0.00026,60]
[338158456,1726321832618,-158.834459,0.00013699,2]
[338158457,1726321832628,-1000.0,0.00026,21]
[338158458,1726321832639,-153.56,0.000266,31]
[338158459,1726321832649,-153.56,0.000266,31]
[338158460,1726321832658,-153.56,0.000266,31]
[338158462,1726321832668,-153.56,0.000266,31]
[338158463,1726321832678,-153.56,0.000266,31]
[338158465,1726321832687,-150.0,0.000277,2]
[338158467,1726321832700,-254.66,0.000291,7]
[338158468,1726321832709,-3200.0,0.00029364,2]
[338158469,1726321832719,-150.0,0.00029364,2]
[338158470,1726321832736,-302.974,0.00029364,2]
[338158471,1726321832748,-153.56,0.000297,31]
[338158472,1726321832759,-153.56,0.000297,31]
[338158473,1726321832770,-153.56,0.000297,31]
[338158474,1726321832781,-153.56,0.000297,31]
[338158475,1726321832792,-153.56,0.000297,31]
[338158476,1726321832802,-153.56,0.000297,31]
[338158477,1726321832812,-5.23032653,0.000297,31]
[338158478,1726321832826,-148.32967347,0.000297,31]
[338158479,1726321832839,-153.56,0.000297,31]
[338158480,1726321832849,-153.56,0.000297,31]
[338158481,1726321832859,-153.56,0.000297,31]
[338158482,1726321832869,-158.834459,0.00031311,2]
[338158483,1726321832879,-1000.0,0.00032,31]
[338158484,1726321832888,-1000.0,0.000326,4]
[338158485,1726321832898,-201.39165466,0.00032628,2]